[Event "American Cup Elimination 2023"]
[Site "Saint Louis"]
[Date "2023.03.21"]
[Round "2.1"]
[White "Caruana, Fabiano"]
[Black "Aronian, Levon"]
[Result "1-0"]
[ECO "A18"]
[WhiteElo "2766"]
[BlackElo "2745"]
[Annotator "TA"]
[PlyCount "97"]
[EventDate "2023.03.15"]
[EventType "k.o."]
[EventCountry "USA"]
[SourceTitle "playchess.com"]
[Source "ChessBase"]
[SourceQuality "1"]
[TimeControl "1500+10"]

{[%evp 10,97,22,22,20,27,23,35,12,-12,-4,-11,-4,-10,0,0,12,-37,14,26,29,45,12,21,26,0,-5,-11,350,343,354,331,588,562,772,565,629,631,722,694,654,388,377,382,390,383,456,428,434,442,456,426,520,528,531,524,454,417,466,464,618,529,519,504,572,562,581,581,567,557,569,555,677,667,645,564,931,908,1283,1358,1371,1288,1136,984,1381,1455,29964,29963,6341,5804]} 1. c4 {[%emt 0:00:03]} Nf6 {[%emt 0:00:07]} 2. Nc3 {[%emt 0:00:03]} e6 {[%emt 0:00:06]} 3. e4 {[%emt 0:00:04]} d5 {[%emt 0:00:02]} 4. cxd5 {[%emt 0:00:02]} exd5 {[%emt 0:00:01]} 5. e5 {[%emt 0:00:01]} Ne4 {[%emt 0:00:03]} 6. Nf3 {[%emt 0:00:02]} Bf5 {[%emt 0:00:02][%cal Bc8f5,Bf5e4,Be4d5,Bd5g2][%mdl 32] A18: English Opening: Flohr-Mikenas System (1 c4 Nf6 2 Nc3 e6 3 e4).} 7. Be2 {[%emt 0:00:15]} d4 {[%emt 0:00:33]} 8. Nxe4 {[%emt 0:00:02]} Bxe4 {[%emt 0:00:01] White is slightly better.} 9. d3 {[%emt 0:00:03]} Bd5 {[%emt 0:00:14]} 10. O-O {[%emt 0:00:03]} Nc6 {[%emt 0:00:24] [#]} 11. Bf4 $146 {[%emt 0:00:03]} ({Predecessor:} 11. a3 a5 12. Bf4 a4 13. Nd2 Be7 14. Bg3 O-O 15. Rc1 Qd7 16. Bg4 Be6 17. Bxe6 fxe6 {½-½ Topalov,V (2749)-Nakamura,H (2785) Paris GCT Blitz 2017 (6)}) 11... h6 {[%emt 0:00:36]} 12. Bg3 {[%emt 0:02:13]} g5 {[%emt 0:00:14]} 13. Qa4 {[%emt 0:04:09]} (13. Nd2 $11 {was preferrable.}) 13... Bg7 {[%emt 0:00:19]} ({Better is} 13... h5 $1 $15 14. e6 (14. Nxd4 $2 {is the wrong capture.} h4 $17) 14... fxe6) 14. Nxd4 $11 {[%emt 0:04:31] aiming for Nf5.} (14. Rac1 {simplifies} O-O 15. Nxd4 Bxg2 16. Nxc6 Bxc6 17. Qc4) 14... Bxg2 $1 {[%emt 0:00:20]} 15. Ne6 $36 {[%emt 0:00:18][%mdl 2048] White is more active.} fxe6 {[%emt 0:00:14]} 16. Bh5+ {[%emt 0:00:01]} Ke7 {[%emt 0:01:31]} 17. Qa3+ {[%emt 0:01:47]} Kd7 {[%emt 0:00:02]} 18. Kxg2 {[%emt 0:00:01]} Bxe5 $2 {[%emt 0:00:19][%mdl 8192] This costs Black the game.} (18... Qe7 $11 {and Black is okay.}) 19. Bxe5 $18 {[%emt 0:01:03]} Nxe5 {[%emt 0:02:12] [#]} 20. d4 $1 {[%emt 0:00:01]} Nc6 {[%emt 0:00:45] [#]} (20... Nc4 21. Qa4+ Ke7 22. Qxc4 Qd5+ 23. Qxd5 exd5 24. Rae1+ Kd6) 21. d5 $1 {[%emt 0:00:02][%mdl 512]} exd5 {[%emt 0:00:31]} (21... Nd4 22. dxe6+) 22. Bg4+ {[%emt 0:02:58]} Ke8 {[%emt 0:00:01]} 23. Qf3 {[%emt 0:01:45]} Rf8 {[%emt 0:06:05]} 24. Rae1+ {[%emt 0:01:29][%cal Ba1e1,Be1e5,Be5f5][%mdl 32]} (24. Bh5+ Kd7 25. Bg4+ (25. Qxd5+ Kc8 $15) 25... Kd6 26. Qa3+ Ke5 $18) 24... Ne7 {[%emt 0:00:02]} 25. Bh5+ {[%emt 0:00:01]} Kd7 {[%emt 0:00:01]} 26. Qh3+ {[%emt 0:00:06]} ({Not} 26. Qe2 c6 $18) 26... Nf5 {[%emt 0:00:38]} 27. Re5 $1 {[%emt 0:00:10][%csl LRd5,LRf5]} c6 {[%emt 0:00:09]} (27... Qf6 $2 28. Rxf5 Qxf5 29. Bg4 $18) 28. Rxf5 {[%emt 0:00:07] White wants to mate with Rf7+.} Kc7 {[%emt 0:00:08]} 29. Re1 {[%emt 0:00:40] Qg3+ would be deadly.} Qd6 {[%emt 0:00:08] Repels Qg3} 30. Bf7 {[%emt 0:00:37]} Rad8 {[%emt 0:00:25]} 31. Re6 {[%emt 0:00:05]} Qc5 {[%emt 0:00:02]} 32. Qg3+ {[%emt 0:00:23]} Kb6 {[%emt 0:00:01]} 33. Rxh6 {[%emt 0:00:23]} a5 {[%emt 0:00:12]} 34. Qxg5 {[%emt 0:00:54]} Qc2 {[%emt 0:00:28]} 35. Rf3 {[%emt 0:01:41]} Ka7 {[%emt 0:00:08]} 36. Qe5 {[%emt 0:01:03]} Qa4 {[%emt 0:01:12]} 37. Rg6 {[%emt 0:00:27]} Qe4 {[%emt 0:00:50]} 38. Qxe4 {[%emt 0:00:43]} dxe4 {[%emt 0:00:01]} 39. Rf5 {[%emt 0:00:08]} Rd2 {[%emt 0:00:01]} 40. Re6 {[%emt 0:01:15]} a4 {[%emt 0:01:23]} 41. Rxe4 {[%emt 0:00:25]} b5 {[%emt 0:00:01]} 42. b3 {[%emt 0:00:30]} Rxa2 {[%emt 0:02:09]} 43. bxa4 {[%emt 0:00:01]} Rxa4 {[%emt 0:00:01]} 44. Rxa4+ {[%emt 0:00:01]} bxa4 {[%emt 0:00:02] KRB-KR} 45. h4 {[%emt 0:00:17][%cal Bh2h4,Bh4h5,Bh5h6][%mdl 32]} Kb6 {[%emt 0:00:28]} 46. Rf3 {[%emt 0:00:03]} c5 {[%emt 0:01:36]} 47. h5 {[%emt 0:00:10] Intending h6 and mate.} Ka5 {[%emt 0:00:42]} 48. h6 {[%emt 0:00:17]} Rh8 {[%emt 0:00:02]} 49. Rh3 {[%emt 0:00:10] Weighted Error Value: White=0.26 (precise) /Black=0.64} 1-0

[Event "American Cup Elimination 2023"]
[Site "Saint Louis"]
[Date "2023.03.21"]
[Round "2.1"]
[White "Dominguez Perez, Leinier"]
[Black "Shankland, Sam"]
[Result "1-0"]
[ECO "B90"]
[WhiteElo "2743"]
[BlackElo "2710"]
[Annotator "TA"]
[PlyCount "95"]
[EventDate "2023.03.15"]
[EventType "k.o."]
[EventCountry "USA"]
[SourceTitle "playchess.com"]
[Source "ChessBase"]
[SourceQuality "1"]
[TimeControl "1500+10"]

{[%evp 16,95,26,21,22,26,18,5,49,46,58,58,53,20,62,59,72,66,52,54,82,72,187,180,312,300,320,306,305,270,277,277,367,318,351,345,341,321,291,302,356,342,479,488,491,499,477,459,820,817,796,779,842,236,557,554,520,501,399,404,446,322,1334,689,947,890,906,872,1175,1132,1343,1297,29971,29971,29987,29988,29988,29989,29989,29981,29981,29980]} 1. e4 {[%emt 0:00:03]} c5 {[%emt 0:00:01]} 2. Nf3 {[%emt 0:00:02]} d6 {[%emt 0:00:00]} 3. d4 {[%emt 0:00:02]} cxd4 {[%emt 0:00:01]} 4. Nxd4 {[%emt 0:00:02]} Nf6 {[%emt 0:00:01]} 5. Nc3 {[%emt 0:00:02]} a6 {[%emt 0:00:01]} 6. Be3 {[%emt 0:00:03]} Ng4 {[%emt 0:00:02]} 7. Bc1 {[%emt 0:00:03]} Nc6 {[%emt 0:00:03]} 8. h3 {[%emt 0:01:31]} Nf6 {[%emt 0:00:02]} 9. Be3 {[%emt 0:00:52]} e5 {[%emt 0:00:19] B90: Sicilian Najdorf: Unusual White 6th moves, 6 Be3 Ng4 and 6 Be3 e5.} 10. Nxc6 $5 {[%emt 0:00:09][%mdl 4] Exploring less charted territory.} bxc6 {[%emt 0:00:01] [#]} 11. f4 $146 {[%emt 0:00:08]} ({Predecessor:} 11. Bc4 Be6 12. Bxe6 fxe6 13. O-O Be7 14. f4 exf4 15. Bxf4 e5 16. Be3 O-O 17. Qe2 d5 18. Rad1 d4 19. Bg5 {1-0 Al Tarbosh,W (2177)-Kanyamarala,T (2082) Titled Tuesday intern op 02nd Nov blitz 2021 (7)}) 11... Be7 {[%emt 0:01:07] The position is equal.} (11... Qa5 $5 {[%cal Rf6e4]}) 12. fxe5 {[%emt 0:06:13]} dxe5 {[%emt 0:00:01]} 13. Qxd8+ {[%emt 0:01:07]} Bxd8 {[%emt 0:00:01]} 14. O-O-O {[%emt 0:00:33]} Be6 {[%emt 0:01:06]} 15. Bd3 {[%emt 0:00:14] White is more active.} Nh5 {[%emt 0:00:59]} 16. Na4 {[%emt 0:02:26]} Nf4 {[%emt 0:00:50]} 17. Bf1 {[%emt 0:00:23]} Bg5 {[%emt 0:02:55][%cal Of4e2]} 18. Kb1 {[%emt 0:00:01] White now steadily converts the win.} O-O {[%emt 0:00:09] [#]} (18... Be7 $16) 19. g3 $1 $18 {[%emt 0:01:26]} Nxh3 {[%emt 0:00:13]} (19... Rfd8 $142 20. Nc3 (20. Re1 Nxh3 21. Bxh3 Bxe3 $16) 20... Rxd1+ {[%mdl 64] Remove Defender} 21. Nxd1 Nh5) 20. Bb6 {[%emt 0:00:34]} Nf4 {[%emt 0:01:34]} 21. gxf4 {[%emt 0:00:03]} exf4 {[%emt 0:00:01]} 22. Rg1 {[%emt 0:01:22] Prevents Bg4} Bh4 {[%emt 0:02:18]} 23. Nc5 {[%emt 0:01:51]} g5 {[%emt 0:03:48]} 24. Nxe6 {[%emt 0:02:51]} fxe6 {[%emt 0:00:01]} 25. Bc4 {[%emt 0:00:04]} Rae8 {[%emt 0:01:17]} 26. Rd2 {[%emt 0:02:14]} (26. Bxa6 h5 27. a4 Ra8) 26... Kg7 {[%emt 0:01:22]} 27. Rd6 {[%emt 0:00:04]} Rf6 {[%emt 0:01:51]} 28. e5 {[%emt 0:00:43]} (28. Bxa6 f3 29. a4 Ra8 $18) 28... Rg6 {[%emt 0:00:13]} (28... Rff8 {was called for.} 29. Bc5 f3) 29. Bd3 {[%emt 0:00:18]} (29. Rxc6 g4 30. Bxa6 Bd8 $18) 29... h5 {[%emt 0:00:47]} 30. Rd7+ {[%emt 0:01:55]} (30. Bxg6 Kxg6 31. Rh1 (31. Rxc6 g4 $18) 31... Bg3 $18) (30. Rxc6 Bg3 31. Bxa6 h4 $18) (30. Bxa6 g4 31. a4 c5 32. Rd7+ Kf8 $18) 30... Kh6 {[%emt 0:00:02]} 31. Rf7 {[%emt 0:00:08]} (31. Bxg6 Kxg6 32. Rh1 Bg3 $18) 31... Bg3 {[%emt 0:01:40]} (31... g4 $142 32. Rxf4 Bg5) 32. Bxg6 {[%emt 0:00:45]} Kxg6 {[%emt 0:00:01]} 33. Rf6+ {[%emt 0:00:01]} Kh7 {[%emt 0:00:45] [#]} 34. Bf2 $2 {[%emt 0:00:38]} h4 $2 {[%emt 0:00:28]} (34... Bxf2 {is a better chance.} 35. Rxg5 h4 36. Rxf4 (36. Rh5+ Kg7 $18) 36... Kh6) 35. Bxg3 {[%emt 0:00:15]} fxg3 {[%emt 0:00:04]} 36. Kc1 {[%emt 0:00:26]} Rd8 {[%emt 0:02:34]} 37. Rxe6 {[%emt 0:00:02]} Rd4 {[%emt 0:00:30]} 38. Rxc6 {[%emt 0:00:38]} Re4 $2 {[%emt 0:00:59]} (38... h3 39. Rxg3 (39. Rxa6 $2 {perishes.} h2 $19) 39... h2 40. Rh3+ (40. Rxa6 $2 {leads to mate.} h1=Q+) 40... Rh4 41. Rxh2 Rxh2 42. Rxa6 Rh4) 39. Kd2 {[%emt 0:00:09]} g4 {[%emt 0:01:18]} 40. Rc3 {[%emt 0:00:24]} Rxe5 {[%emt 0:00:56]} 41. Rc4 {[%emt 0:00:25]} Rg5 {[%emt 0:00:04]} 42. Ke3 {[%emt 0:00:39] Kf4 would be deadly.} Rg8 {[%emt 0:01:27]} 43. Kf4 {[%emt 0:00:06] Threatening mate with Rh1.} Kh6 {[%emt 0:00:01]} 44. Rh1 {[%emt 0:00:23] White mates.} g2 {[%emt 0:00:25]} 45. Rxh4+ {[%emt 0:00:06]} Kg7 {[%emt 0:00:03]} 46. Rxg4+ {[%emt 0:00:03]} Kh8 {[%emt 0:00:02]} 47. Rxg8+ {[%emt 0:00:18]} Kxg8 {[%emt 0:00:00]} 48. Rc3 {[%emt 0:00:01] Weighted Error Value: White=0.46/Black=0.54} ({Not} 48. Rc8+ Kf7 49. Rc7+ Kf8 50. Rc8+ Kf7 51. Rc7+ Kf8 52. Rc8+ Kf7 $11) 1-0

[Event "American Cup Elimination 2023"]
[Site "Saint Louis"]
[Date "2023.03.19"]
[Round "2.1"]
[White "Sevian, Samuel"]
[Black "Aronian, Levon"]
[Result "1/2-1/2"]
[ECO "E32"]
[WhiteElo "2687"]
[BlackElo "2745"]
[Annotator "TA"]
[PlyCount "143"]
[EventDate "2023.03.15"]
[EventType "k.o."]
[EventCountry "USA"]
[SourceTitle "playchess.com"]
[Source "ChessBase"]
[SourceQuality "1"]
[TimeControl "1500+10"]

{[%evp 14,142,10,-7,31,2,27,27,27,26,25,18,24,28,24,22,18,20,20,18,12,9,16,0,15,15,15,15,35,7,25,22,29,21,58,58,61,51,62,51,51,51,52,45,69,69,81,67,74,29,65,59,54,58,45,22,22,0,0,0,12,0,0,0,0,0,0,0,0,0,67,66,66,65,199,54,183,187,187,198,196,195,187,8,8,8,8,8,17,-8,0,-8,-8,-8,-8,-8,-8,-8,-8,-8,-8,-8,-8,-8,-8,-8,-8,-8,-8,-8,-8,-8,-8,-8,-4,-4,-4,-4,0,0,0,0,0,0,0,0,0,0,0,0,0]} 1. c4 {[%emt 0:00:02]} Nf6 {[%emt 0:00:02]} 2. d4 {[%emt 0:00:02]} e6 {[%emt 0:00:02]} 3. Nc3 {[%emt 0:00:01]} Bb4 {[%emt 0:00:02]} 4. Qc2 {[%emt 0:00:03]} O-O {[%emt 0:00:05]} 5. a3 {[%emt 0:00:02]} Bxc3+ {[%emt 0:00:06]} 6. Qxc3 {[%emt 0:00:01]} b6 {[%emt 0:00:14] 6...d5 deserves study.} 7. Bg5 {[%emt 0:00:02]} Bb7 {[%emt 0:00:22]} 8. e3 {[%emt 0:00:01]} d5 {[%emt 0:00:44] E32: Nimzo-Indian: Classical (4 Qc2): 4...0-0.} 9. Nf3 {[%emt 0:03:19]} Nbd7 {[%emt 0:00:44]} 10. cxd5 {[%emt 0:00:41]} Bxd5 {[%emt 0:00:13] White has an edge.} 11. Ne5 {[%emt 0:00:01] [#]} Nxe5 $146 {[%emt 0:01:33]} ({Predecessor:} 11... Qc8 12. f3 Bb7 13. e4 Nxe5 14. dxe5 Nd7 15. Rd1 h6 16. Bh4 a5 17. Bb5 c6 {½-½ Dreev,A (2644)-Abasov,N (2556) Tata Steel-B 78th 2016 (12)}) 12. dxe5 {[%emt 0:00:08]} Ne4 {[%emt 0:00:01][%csl LRc3,LRg5][%mdl 64] Discovered Attack, Double Attack} 13. Bxd8 {[%emt 0:00:02]} Nxc3 {[%emt 0:00:02]} 14. Be7 {[%emt 0:00:01][%cal Oe7f8]} Rfe8 {[%emt 0:00:07]} 15. Bh4 {[%emt 0:00:02]} Na4 {[%emt 0:00:04]} 16. Bb5 {[%emt 0:00:01][%csl LRa4,LRe8]} (16. O-O-O $5 {[%cal Rf1b5]}) 16... Nxb2 {[%emt 0:00:02]} 17. Bxe8 {[%emt 0:00:02]} Rxe8 {[%emt 0:00:02]} 18. f3 {[%emt 0:00:11]} c5 {[%emt 0:01:52]} 19. e4 {[%emt 0:00:23]} Bc6 {[%emt 0:00:16]} 20. Ke2 {[%emt 0:06:44]} c4 {[%emt 0:01:45]} 21. Kd2 {[%emt 0:06:42]} b5 {[%emt 0:02:39]} 22. Kc3 {[%emt 0:00:01]} (22. Kc2 {simplifies} Nd3 23. Rhd1 Rc8 24. Rxd3 cxd3+ 25. Kxd3 Kf8 26. Bf2) 22... Nd3 {[%emt 0:00:03] [#]} 23. a4 $1 {[%emt 0:00:11]} a6 {[%emt 0:00:13]} (23... bxa4 24. Kxc4) 24. axb5 $1 {[%emt 0:00:01]} Bxb5 {[%emt 0:00:35]} (24... axb5 25. Ra7 Rc8 26. Kd4 $16) 25. Bg3 {[%emt 0:01:10]} Rc8 {[%emt 0:00:17]} 26. h4 {[%emt 0:01:05]} h5 {[%emt 0:01:53]} 27. Bh2 {[%emt 0:00:10]} Kf8 {[%emt 0:00:08]} 28. Rhg1 {[%emt 0:00:10]} Ke7 {[%emt 0:00:03]} 29. g4 {[%emt 0:00:24]} hxg4 {[%emt 0:00:03]} 30. Rxg4 {[%emt 0:00:04]} g6 {[%emt 0:00:02]} 31. Rg5 {[%emt 0:01:24]} Rh8 {[%emt 0:03:19]} 32. Bg3 {[%emt 0:00:01][%cal Oh4h5]} Kd7 {[%emt 0:00:02] [#]} 33. h5 $1 {[%emt 0:00:39]} gxh5 {[%emt 0:00:02]} 34. Rh1 {[%emt 0:00:18]} Kc6 {[%emt 0:00:02]} (34... h4 {simplifies} 35. Bxh4 Kc6 36. Rgg1 Nxe5 37. Bf6 Rxh1 38. Rxh1 Nxf3 39. Rh7 Ne1) 35. Rg7 {[%emt 0:01:14][%mdl 1024] White has compensation.} Rd8 {[%emt 0:00:49] Strongly threatening ...Nc5.} 36. Rd1 {[%emt 0:01:00]} ({Of course not} 36. Rxf7 Nc5 37. Rc1 (37. Rxh5 Rd3+ 38. Kc2 c3 $19) 37... Nb3 $15) 36... Rd7 {[%emt 0:00:06]} 37. f4 {[%emt 0:01:14]} Ba4 {[%emt 0:01:46]} 38. Rd2 {[%emt 0:00:18]} Bb3 {[%emt 0:00:03]} 39. f5 {[%emt 0:00:17]} a5 {[%emt 0:00:02]} 40. fxe6 {[%emt 0:00:31]} fxe6 {[%emt 0:00:01]} 41. Rg6 {[%emt 0:00:18] Dancing on a razor blade.} Kb5 {[%emt 0:01:59]} (41... Nc5 $11 42. Rxd7 Kxd7) 42. Rxe6 $14 {[%emt 0:00:08]} Rg7 {[%emt 0:00:02]} 43. Bh2 {[%emt 0:01:21]} Ka4 {[%emt 0:01:52] [#]} (43... Nb4 $1 $14) 44. Rc6 {[%emt 0:00:27]} (44. Rb6 $1 $18) 44... Nb4 {[%emt 0:00:30]} (44... Rg4 $1 $14) 45. Rb6 $18 {[%emt 0:00:01]} Rg4 {[%emt 0:00:47] [#]} 46. Re2 {[%emt 0:00:42] e6 is the strong threat.} Na2+ {[%emt 0:00:29]} 47. Kd4 {[%emt 0:00:23] And now e6 would win.} c3 {[%emt 0:00:20]} 48. Rc6 $2 {[%emt 0:00:11]} (48. e6 $18 {aiming for e7.} Rg7 49. Bf4) 48... Rg8 $11 {[%emt 0:00:47] The position is equal.} 49. e6 {[%emt 0:00:11]} Re8 {[%emt 0:00:26]} 50. Bf4 {[%emt 0:00:54]} Rxe6 {[%emt 0:00:25]} (50... c2 {feels hotter.} 51. Rh2 Nb4 52. Rd6 Rxe6 53. Rxe6 Bxe6 54. Rxh5 Kb3) 51. Rc5 $132 {[%emt 0:00:09][%mdl 2048] White puts up resistance} Rb6 {[%emt 0:00:36]} 52. Bc7 {[%emt 0:00:11]} ({Don't play} 52. Rxh5 Rb4+ 53. Ke3 c2 $17) 52... Rb4+ {[%emt 0:00:27]} 53. Kd3 {[%emt 0:00:07][%csl Gc7][%cal Rc5a5] [#]} Bc4+ $1 {[%emt 0:01:04]} 54. Rxc4 {[%emt 0:00:02]} Nc1+ {[%emt 0:00:01]} 55. Kxc3 {[%emt 0:00:21] Threatening mate with Rh2.} Nxe2+ {[%emt 0:00:02]} 56. Kd3 {[%emt 0:00:00]} Rxc4 {[%emt 0:00:45]} 57. Kxc4 {[%emt 0:00:01][%mdl 4096] Endgame KB-KN} h4 {[%emt 0:00:01]} 58. Bh2 {[%emt 0:00:18]} Ng3 {[%emt 0:00:02] Threatens to win with ...Nf1.} 59. e5 {[%emt 0:00:01]} Nf5 {[%emt 0:00:14] Hoping for ...Ng7.} 60. e6 {[%emt 0:00:01]} h3 {[%emt 0:00:05]} 61. Be5 {[%emt 0:00:30]} Ka3 {[%emt 0:00:02]} 62. Kd5 {[%emt 0:00:13]} Ne7+ {[%emt 0:00:38]} 63. Ke4 {[%emt 0:00:03]} Nc6 {[%emt 0:00:23]} 64. Bd6+ {[%emt 0:00:14]} Kb3 {[%emt 0:00:11]} 65. Ke3 {[%emt 0:00:15] [#]} (65. Kf3 {simplifies} Nd4+ 66. Kg4 Nxe6 67. Kxh3 Kc4 68. Ba3) 65... Ne7 $1 {[%emt 0:00:51][%mdl 64] ( -> ...Nf5+). Deflection, Promotion} 66. Kf3 {[%emt 0:00:08]} (66. Bxe7 h2 67. Kf4 a4 $19) (66. Kf2 Nf5) 66... Nf5 {[%emt 0:00:19]} 67. Bc5 {[%emt 0:00:13]} a4 {[%emt 0:00:07]} 68. e7 {[%emt 0:00:01]} Nxe7 {[%emt 0:00:01]} 69. Bxe7 {[%emt 0:00:01]} a3 {[%emt 0:00:01]} 70. Bxa3 {[%emt 0:00:02]} Kxa3 {[%emt 0:00:01]} (70... h2 $5 71. Kg2 $8 Kxa3 $11) 71. Kg3 {[%emt 0:00:01]} h2 {[%emt 0:00:02]} 72. Kxh2 {[%emt 0:00:00] An interesting game.   Weighted Error Value: White=0.14 (very precise) /Black=0.14 (very precise)} 1/2-1/2

[Event "American Cup Elimination 2023"]
[Site "Saint Louis"]
[Date "2023.03.21"]
[Round "2.2"]
[White "Aronian, Levon"]
[Black "Caruana, Fabiano"]
[Result "1-0"]
[ECO "C78"]
[WhiteElo "2745"]
[BlackElo "2766"]
[Annotator "TA"]
[PlyCount "123"]
[EventDate "2023.03.15"]
[EventType "k.o."]
[EventCountry "USA"]
[SourceTitle "playchess.com"]
[Source "ChessBase"]
[SourceQuality "1"]
[TimeControl "1500+10"]

{[%evp 15,123,20,33,23,31,28,31,25,27,24,36,31,31,0,20,0,-7,-23,47,61,69,59,141,160,141,95,95,90,206,223,212,204,218,195,189,186,200,183,177,195,229,212,228,222,235,190,199,198,197,194,184,186,180,127,131,131,118,108,123,112,119,68,92,88,88,8,18,18,605,115,127,107,354,189,201,201,275,264,251,238,443,454,432,423,379,366,345,345,1206,1199,1177,1113,1094,621,526,519,1164,997,1257,1133,29956,29957,29959,29961,29969,29962,29962,29957,29949,8882]} 1. e4 {[%emt 0:00:02]} e5 {[%emt 0:00:09]} 2. Nf3 {[%emt 0:00:02]} Nc6 {[%emt 0:00:02]} 3. Bb5 {[%emt 0:00:02]} a6 {[%emt 0:00:01]} 4. Ba4 {[%emt 0:00:01]} Nf6 {[%emt 0:00:02]} 5. d3 {[%emt 0:00:03]} Bc5 {[%emt 0:00:02]} 6. O-O {[%emt 0:00:06]} b5 {[%emt 0:00:18]} 7. Bb3 {[%emt 0:00:01]} O-O {[%emt 0:00:02]} 8. c3 {[%emt 0:00:34]} d6 {[%emt 0:00:02]} 9. Bg5 {[%emt 0:00:13] C78: Ruy Lopez: Archangelsk and Möller Defences.} h6 {[%emt 0:00:15]} 10. Bh4 {[%emt 0:00:02]} g5 {[%emt 0:00:39] 10...Bb6 deserves study.} 11. Bg3 {[%emt 0:00:01] White is slightly better.} Bb6 {[%emt 0:00:07]} 12. a4 {[%emt 0:00:06] next axb5 is good for White.} Rb8 {[%emt 0:00:30]} 13. Nbd2 {[%emt 0:00:01] [#]} Nh7 $146 {[%emt 0:00:30]} ({Predecessor:} 13... Kg7 14. h3 g4 15. Nh4 Nh5 16. Kh2 Qg5 17. hxg4 Bxg4 18. Ndf3 Nxg3 19. fxg3 Qh5 {½-½ Moll,R (2554)-Pessoa,F (2524) W-ch32 final email 2020}) 14. Re1 {[%emt 0:01:12]} Kh8 {[%emt 0:00:25]} (14... h5 $5 {[%cal Rh5h4]} 15. axb5 axb5 $11) 15. axb5 {[%emt 0:00:23]} axb5 {[%emt 0:00:02]} 16. Nf1 {[%emt 0:00:04]} f5 {[%emt 0:02:07]} (16... h5 $1 $11 17. h4 g4) 17. exf5 $1 $14 {[%emt 0:00:05]} Bxf5 {[%emt 0:00:02]} 18. Ne3 {[%emt 0:00:23]} Bg6 {[%emt 0:00:56]} (18... Bxe3 $14 19. Rxe3 h5) 19. Nd5 $1 $16 {[%emt 0:02:43]} Nf6 {[%emt 0:07:25]} 20. Nxb6 {[%emt 0:00:12]} ({White should try} 20. d4 $1 {[%cal Rd4e5]}) 20... Rxb6 {[%emt 0:00:01]} 21. d4 $1 {[%emt 0:00:26][%cal Rd4e5]} exd4 {[%emt 0:06:19]} (21... e4 $16 {might work better.}) 22. Nxd4 $18 {[%emt 0:00:02]} Nxd4 {[%emt 0:00:02]} 23. Qxd4 {[%emt 0:00:02]} (23. cxd4 $6 Rb8 $16) 23... c5 {[%emt 0:00:26]} 24. Qd1 {[%emt 0:00:01]} b4 {[%emt 0:00:54]} 25. Bc2 {[%emt 0:02:45]} Bxc2 {[%emt 0:00:25]} 26. Qxc2 {[%emt 0:00:02] Black must now prevent Qg6.} Qd7 {[%emt 0:00:20]} 27. cxb4 {[%emt 0:01:20]} cxb4 {[%emt 0:00:01]} 28. Qd3 {[%emt 0:00:52]} Kg7 {[%emt 0:03:15]} 29. f3 {[%emt 0:00:15]} Rf7 {[%emt 0:00:34][%cal Bf8f7,Bf7e7,Be7e3,Be3d3][%mdl 32]} 30. Ra5 {[%emt 0:01:08] Against Qb5} Rc6 {[%emt 0:00:41]} 31. Bf2 {[%emt 0:00:32]} Re7 {[%emt 0:00:25]} 32. Rd1 {[%emt 0:00:20]} Qe6 {[%emt 0:00:35] [#]} 33. h4 $1 {[%emt 0:02:27]} (33. Bd4 $6 Qe2 $16) 33... gxh4 {[%emt 0:00:01]} 34. Bxh4 {[%emt 0:00:52]} (34. Re1 $18 Qd7 35. Rxe7+ (35. Bxh4 Rxe1+ {[%mdl 64] Remove Defender} 36. Bxe1 Qc7 $16) 35... Qxe7 36. Qd2 (36. Bxh4 Rc1+ 37. Kh2 Rc5 $14)) 34... Qe3+ {[%emt 0:00:01]} 35. Qxe3 {[%emt 0:00:17]} Rxe3 {[%emt 0:00:02]} 36. Rd4 {[%emt 0:00:02]} b3 {[%emt 0:01:42]} (36... Rc1+ $2 37. Kh2 Re6 38. Ra7+ (38. Rxb4 Rc2 $16) 38... Kg6 39. Ra6 $18 (39. Rxb4 Rc2 $16)) 37. Rf4 {[%emt 0:00:38] aiming for Ra7+.} d5 {[%emt 0:00:32]} 38. Bf2 {[%emt 0:02:10]} (38. Rb5 $16) 38... Rd3 {[%emt 0:00:30]} 39. Bd4 {[%emt 0:00:12]} Kg6 {[%emt 0:00:01]} 40. Ra8 {[%emt 0:00:05]} ({Better is} 40. Kh2 $16) 40... Kg5 $1 $11 {[%emt 0:00:39]} 41. Be5 {[%emt 0:00:14] Hoping for Rf8.} Re6 $2 {[%emt 0:00:38][%mdl 8192] [#]} (41... Re3 $11 42. Rb4 Rc1+ 43. Kf2 Rxe5 44. f4+ (44. Rxb3 $2 {is the wrong capture.} Rc2+ 45. Kf1 Ree2 $19) 44... Kf5 45. fxe5 Ne4+ 46. Kf3 Rf1+ 47. Ke2 (47. Ke3 Re1+ 48. Kd3 Rd1+ 49. Ke3 Re1+ 50. Kf3 Rf1+ 51. Ke3 Re1+ $11) 47... Rf2+ 48. Ke3 Rxb2) 42. Rd4 $2 {[%emt 0:00:57]} (42. Rf8 $1 $18) 42... Rxd4 $16 {[%emt 0:00:05]} 43. Bxd4 {[%emt 0:00:01][%mdl 4096] Endgame KRB-KRN} Re2 $2 {[%emt 0:00:22]} (43... Rc6 $16 {keeps fighting.}) 44. Rd8 {[%emt 0:01:51]} (44. f4+ $142 Kf5 45. Rf8 Kxf4 46. Bxf6) 44... h5 {[%emt 0:00:12]} 45. Rd6 {[%emt 0:00:20] Wards off Re6} Nh7 {[%emt 0:00:10]} 46. Rxd5+ {[%emt 0:00:21]} Kg6 {[%emt 0:00:00]} 47. Rd6+ {[%emt 0:00:02]} Kf5 $2 {[%emt 0:00:15]} (47... Kf7 {was necessary.} 48. Rd7+ Re7) 48. Rh6 $18 {[%emt 0:00:15][%csl LRh5,LRh7]} Re7 {[%emt 0:00:01]} 49. Rxh5+ {[%emt 0:00:14]} Ng5 {[%emt 0:00:01] [#]} 50. f4 $1 {[%emt 0:00:30][%mdl 64] Deflection} Kxf4 {[%emt 0:00:15]} 51. Bf6 {[%emt 0:00:01][%csl LRe7,LRg5]} Rf7 {[%emt 0:00:28]} (51... Nf3+ 52. gxf3 Re6) 52. Bxg5+ {[%emt 0:00:01] KRB-KR} Kg4 {[%emt 0:00:00]} 53. Rh3 {[%emt 0:00:02]} Kxg5 {[%emt 0:00:01] KR-KR} 54. Rg3+ {[%emt 0:00:01]} Kh4 {[%emt 0:00:02]} 55. Rxb3 {[%emt 0:00:01]} Rd7 {[%emt 0:00:03]} (55... Kg4 $142 56. Rd3 Rf4) 56. Kf2 {[%emt 0:00:21]} Rd2+ {[%emt 0:00:01]} 57. Ke3 {[%emt 0:00:07]} Rxg2 {[%emt 0:00:01]} 58. Rb5 {[%emt 0:00:01] White mates.} Rg4 {[%emt 0:00:11]} 59. b4 {[%emt 0:00:10]} Kg3 {[%emt 0:00:01]} 60. Kd3 {[%emt 0:00:02]} Rf4 {[%emt 0:00:24]} 61. Kc3 {[%emt 0:00:07]} Kf3 {[%emt 0:00:02]} 62. Re5 {[%emt 0:00:04] Weighted Error Value: White=0.32/Black=0.43} 1-0